Workbook

Sheet 总成绩及进入体检人员名单
A1: 毕节市第一人民医院2023年面向社会公开招聘编外工作人员总成绩及进入体检人员名单公示
A2: 序号 | B2: 姓名 | C2: 准考证号 | D2: 岗位名称 | E2: 岗位代码 | F2: 笔试分数 | G2: 面试分数 | H2: 总成绩 | I2: 是否进入体检
A3: 1 | B3: =[1]第一考点!D43 -> 马关园 | C3: =[1]第一考点!O43 -> 20230101020212 | D3: =[1]第一考点!G43 -> 检验技师 | E3: 2 | F3: =VLOOKUP(C3,[1]笔试成绩!A:C,3,0) -> 79.52 | G3: 87.00 | H3: =F3*0.4+G3*0.6 -> 84.01 | I3: 是
A4: 2 | B4: =[1]第一考点!D75 -> 王佳森 | C4: =[1]第一考点!O75 -> 20230101030214 | D4: =[1]第一考点!G75 -> 检验技师 | E4: 2 | F4: =VLOOKUP(C4,[1]笔试成绩!A:C,3,0) -> 77.82 | G4: 83.00 | H4: 80.93 | I4: 是
A5: 3 | B5: =[1]第一考点!D162 -> 黄越 | C5: =[1]第一考点!O162 -> 20230101060211 | D5: =[1]第一考点!G162 -> 检验技师 | E5: 2 | F5: =VLOOKUP(C5,[1]笔试成绩!A:C,3,0) -> 79.02 | G5: 81.90 | H5: 80.75 | I5: 是
A6: 4 | B6: =[1]第一考点!D168 -> 赵青 | C6: =[1]第一考点!O168 -> 20230101060217 | D6: =[1]第一考点!G168 -> 检验技师 | E6: 2 | F6: =VLOOKUP(C6,[1]笔试成绩!A:C,3,0) -> 82.44 | G6: 79.60 | H6: 80.74 | I6: 是
A7: 5 | B7: =[1]第一考点!D56 -> 苏贞操 | C7: =[1]第一考点!O56 -> 20230101020225 | D7: =[1]第一考点!G56 -> 检验技师 | E7: 2 | F7: =VLOOKUP(C7,[1]笔试成绩!A:C,3,0) -> 82.68 | G7: 78.90 | H7: 80.41 | I7: 是
A8: 6 | B8: =[1]第一考点!D25 -> 熊恩文 | C8: =[1]第一考点!O25 -> 20230101010224 | D8: =[1]第一考点!G25 -> 检验技师 | E8: 2 | F8: =VLOOKUP(C8,[1]笔试成绩!A:C,3,0) -> 79.02 | G8: 81.10 | H8: 80.27 | I8: 是
A9: 7 | B9: =[1]第一考点!D207 -> 林建雄 | C9: =[1]第一考点!O207 -> 20230101070226 | D9: =[1]第一考点!G207 -> 检验技师 | E9: 2 | F9: =VLOOKUP(C9,[1]笔试成绩!A:C,3,0) -> 79.04 | G9: 79.30 | H9: 79.20 | I9: 是
A10: 8 | B10: =[1]第一考点!D77 -> 丁璇 | C10: =[1]第一考点!O77 -> 20230101030216 | D10: =[1]第一考点!G77 -> 检验技师 | E10: 2 | F10: =VLOOKUP(C10,[1]笔试成绩!A:C,3,0) -> 78.54 | G10: 79.52 | H10: 79.13
A11: 9 | B11: =[1]第一考点!D128 -> 王田 | C11: =[1]第一考点!O128 -> 20230101050207 | D11: =[1]第一考点!G128 -> 检验技师 | E11: 2 | F11: =VLOOKUP(C11,[1]笔试成绩!A:C,3,0) -> 78.78 | G11: 79.10 | H11: 78.97
A12: 10 | B12: =[1]第一考点!D202 -> 徐多仪 | C12: =[1]第一考点!O202 -> 20230101070221 | D12: =[1]第一考点!G202 -> 检验技师 | E12: 2 | F12: =VLOOKUP(C12,[1]笔试成绩!A:C,3,0) -> 80.00 | G12: 77.92 | H12: 78.75
A13: 11 | B13: =[1]第一考点!D70 -> 徐薇 | C13: =[1]第一考点!O70 -> 20230101030209 | D13: =[1]第一考点!G70 -> 检验技师 | E13: 2 | F13: =VLOOKUP(C13,[1]笔试成绩!A:C,3,0) -> 79.02 | G13: 78.30 | H13: 78.59
A14: 12 | B14: =[1]第一考点!D39 -> 褚元霞 | C14: =[1]第一考点!O39 -> 20230101020208 | D14: =[1]第一考点!G39 -> 检验技师 | E14: 2 | F14: =VLOOKUP(C14,[1]笔试成绩!A:C,3,0) -> 77.82 | G14: 79.10 | H14: 78.59
A15: 13 | B15: =[1]第一考点!D178 -> 余占奎 | C15: =[1]第一考点!O178 -> 20230101060227 | D15: =[1]第一考点!G178 -> 检验技师 | E15: 2 | F15: =VLOOKUP(C15,[1]笔试成绩!A:C,3,0) -> 78.54 | G15: 78.50 | H15: 78.52
A16: 14 | B16: =[1]第一考点!D197 -> 汪廷海 | C16: =[1]第一考点!O197 -> 20230101070216 | D16: =[1]第一考点!G197 -> 检验技师 | E16: 2 | F16: =VLOOKUP(C16,[1]笔试成绩!A:C,3,0) -> 78.54 | G16: 77.74 | H16: 78.06
A17: 15 | B17: =[1]第一考点!D155 -> 龙佳宜 | C17: =[1]第一考点!O155 -> 20230101060204 | D17: =[1]第一考点!G155 -> 检验技师 | E17: 2 | F17: =VLOOKUP(C17,[1]笔试成绩!A:C,3,0) -> 79.04 | G17: 76.60 | H17: 77.58
A18: 16 | B18: =[1]第一考点!D182 -> 廖正全 | C18: =[1]第一考点!O182 -> 20230101070201 | D18: =[1]第一考点!G182 -> 检验技师 | E18: 2 | F18: =VLOOKUP(C18,[1]笔试成绩!A:C,3,0) -> 78.54 | G18: 76.70 | H18: 77.44
A19: 17 | B19: =[1]第一考点!D29 -> 葛雨辰 | C19: =[1]第一考点!O29 -> 20230101010228 | D19: =[1]第一考点!G29 -> 检验技师 | E19: 2 | F19: =VLOOKUP(C19,[1]笔试成绩!A:C,3,0) -> 79.52 | G19: 74.90 | H19: 76.75
A20: 18 | B20: =[1]第一考点!D88 -> 孙婷 | C20: =[1]第一考点!O88 -> 20230101030227 | D20: =[1]第一考点!G88 -> 检验技师 | E20: 2 | F20: =VLOOKUP(C20,[1]笔试成绩!A:C,3,0) -> 83.90 | G20: 71.00 | H20: 76.16
A21: 19 | B21: =[1]第一考点!D72 -> 余宝珠 | C21: =[1]第一考点!O72 -> 20230101030211 | D21: =[1]第一考点!G72 -> 检验技师 | E21: 2 | F21: =VLOOKUP(C21,[1]笔试成绩!A:C,3,0) -> 78.54 | G21: 73.10 | H21: 75.28
A22: 20 | B22: =[1]第一考点!D145 -> 王卫 | C22: =[1]第一考点!O145 -> 20230101050224 | D22: =[1]第一考点!G145 -> 检验技师 | E22: 2 | F22: =VLOOKUP(C22,[1]笔试成绩!A:C,3,0) -> 79.52 | G22: 70.90 | H22: 74.35
A23: 21 | B23: =[1]第一考点!D50 -> 刘朝莲 | C23: =[1]第一考点!O50 -> 20230101020219 | D23: =[1]第一考点!G50 -> 检验技师 | E23: 2 | F23: =VLOOKUP(C23,[1]笔试成绩!A:C,3,0) -> 80.48 | G23: 68.30 | H23: 73.17
A24: 22 | B24: =[1]第一考点!D31 -> 朱印 | C24: =[1]第一考点!O31 -> 20230101010230 | D24: =[1]第一考点!G31 -> 检验技师 | E24: 2 | F24: =VLOOKUP(C24,[1]笔试成绩!A:C,3,0) -> 78.54 | G24: 66.10 | H24: 71.08
A25: 23 | B25: =[1]第一考点!D219 -> 杨青 | C25: =[1]第一考点!O219 -> 20230101080508 | D25: =[1]第一考点!G219 -> 放射技师 | E25: 5 | F25: =VLOOKUP(C25,[1]笔试成绩!A:C,3,0) -> 81.70 | G25: 81.00 | H25: 81.28 | I25: 是
A26: 24 | B26: =[1]第一考点!D254 -> 夏航 | C26: =[1]第一考点!O254 -> 20230101090513 | D26: =[1]第一考点!G254 -> 放射技师 | E26: 5 | F26: =VLOOKUP(C26,[1]笔试成绩!A:C,3,0) -> 81.46 | G26: 80.60 | H26: 80.94 | I26: 是
A27: 25 | B27: =[1]第一考点!D225 -> 漆云 | C27: =[1]第一考点!O225 -> 20230101080514 | D27: =[1]第一考点!G225 -> 放射技师 | E27: 5 | F27: =VLOOKUP(C27,[1]笔试成绩!A:C,3,0) -> 71.72 | G27: 83.80 | H27: 78.97 | I27: 是
A28: 26 | B28: =[1]第一考点!D234 -> 陈兴 | C28: =[1]第一考点!O234 -> 20230101080523 | D28: =[1]第一考点!G234 -> 放射技师 | E28: 5 | F28: =VLOOKUP(C28,[1]笔试成绩!A:C,3,0) -> 82.20 | G28: 73.60 | H28: 77.04 | I28: 是
A29: 27 | B29: =[1]第一考点!D259 -> 彭霄 | C29: =[1]第一考点!O259 -> 20230101090518 | D29: =[1]第一考点!G259 -> 放射技师 | E29: 5 | F29: =VLOOKUP(C29,[1]笔试成绩!A:C,3,0) -> 73.18 | G29: 79.00 | H29: 76.67 | I29: 是
A30: 28 | B30: =[1]第一考点!D266 -> 叶蔚蓝 | C30: =[1]第一考点!O266 -> 20230101090525 | D30: =[1]第一考点!G266 -> 放射技师 | E30: 5 | F30: =VLOOKUP(C30,[1]笔试成绩!A:C,3,0) -> 75.86 | G30: 76.60 | H30: 76.30
A31: 29 | B31: =[1]第一考点!D258 -> 罗玥媛 | C31: =[1]第一考点!O258 -> 20230101090517 | D31: =[1]第一考点!G258 -> 放射技师 | E31: 5 | F31: =VLOOKUP(C31,[1]笔试成绩!A:C,3,0) -> 75.14 | G31: 77.00 | H31: 76.26
A32: 30 | B32: =[1]第一考点!D251 -> 李美玲 | C32: =[1]第一考点!O251 -> 20230101090510 | D32: =[1]第一考点!G251 -> 放射技师 | E32: 5 | F32: =VLOOKUP(C32,[1]笔试成绩!A:C,3,0) -> 73.66 | G32: 77.00 | H32: 75.66
A33: 31 | B33: =[1]第一考点!D222 -> 龙凤 | C33: =[1]第一考点!O222 -> 20230101080511 | D33: =[1]第一考点!G222 -> 放射技师 | E33: 5 | F33: =VLOOKUP(C33,[1]笔试成绩!A:C,3,0) -> 73.66 | G33: 73.40 | H33: 73.50
A34: 32 | B34: =[1]第一考点!D230 -> 王婷 | C34: =[1]第一考点!O230 -> 20230101080519 | D34: =[1]第一考点!G230 -> 放射技师 | E34: 5 | F34: =VLOOKUP(C34,[1]笔试成绩!A:C,3,0) -> 74.90 | G34: 71.20 | H34: 72.68
A35: 33 | B35: =[1]第一考点!D264 -> 安珊 | C35: =[1]第一考点!O264 -> 20230101090523 | D35: =[1]第一考点!G264 -> 放射技师 | E35: 5 | F35: =VLOOKUP(C35,[1]笔试成绩!A:C,3,0) -> 79.76 | G35: 67.00 | H35: 72.10
A36: 34 | B36: =[1]第一考点!D257 -> 罗玉芳 | C36: =[1]第一考点!O257 -> 20230101090516 | D36: =[1]第一考点!G257 -> 放射技师 | E36: 5 | F36: =VLOOKUP(C36,[1]笔试成绩!A:C,3,0) -> 76.34 | G36: 68.40 | H36: 71.58
A37: 35 | B37: =[1]第一考点!D231 -> 石红 | C37: =[1]第一考点!O231 -> 20230101080520 | D37: =[1]第一考点!G231 -> 放射技师 | E37: 5 | F37: =VLOOKUP(C37,[1]笔试成绩!A:C,3,0) -> 71.72 | G37: 70.00 | H37: 70.69
A38: 36 | B38: =[1]第一考点!D252 -> 陈文杰 | C38: =[1]第一考点!O252 -> 20230101090511 | D38: =[1]第一考点!G252 -> 放射技师 | E38: 5 | F38: =VLOOKUP(C38,[1]笔试成绩!A:C,3,0) -> 71.72 | G38: 66.60 | H38: 68.65
A39: 37 | B39: =[1]第一考点!D239 -> 王治胜 | C39: =[1]第一考点!O239 -> 20230101080528 | D39: =[1]第一考点!G239 -> 放射技师 | E39: 5 | F39: =VLOOKUP(C39,[1]笔试成绩!A:C,3,0) -> 72.44 | G39: 62.80 | H39: 66.66
A40: 38 | B40: =[1]第一考点!D237 -> 张杰 | C40: =[1]第一考点!O237 -> 20230101080526 | D40: =[1]第一考点!G237 -> 放射技师 | E40: 5 | F40: =VLOOKUP(C40,[1]笔试成绩!A:C,3,0) -> 73.90 | G40: 56.20 | H40: 63.28
A41: 39 | B41: =[1]第一考点!D281 -> 艾世周 | C41: =[1]第一考点!O281 -> 20230101100610 | D41: =[1]第一考点!G281 -> 放射技士 | E41: 6 | F41: =VLOOKUP(C41,[1]笔试成绩!A:C,3,0) -> 82.20 | G41: 83.80 | H41: 83.16 | I41: 是
A42: 40 | B42: =[1]第一考点!D271 -> 杜双 | C42: =[1]第一考点!O271 -> 20230101090630 | D42: =[1]第一考点!G271 -> 放射技士 | E42: 6 | F42: =VLOOKUP(C42,[1]笔试成绩!A:C,3,0) -> 83.66 | G42: 78.00 | H42: 80.26 | I42: 是
A43: 41 | B43: =[1]第一考点!D270 -> 宋文文 | C43: =[1]第一考点!O270 -> 20230101090629 | D43: =[1]第一考点!G270 -> 放射技士 | E43: 6 | F43: =VLOOKUP(C43,[1]笔试成绩!A:C,3,0) -> 66.12 | G43: 83.20 | H43: 76.37 | I43: 是
A44: 42 | B44: =[1]第一考点!D275 -> 葛晓琳 | C44: =[1]第一考点!O275 -> 20230101100604 | D44: =[1]第一考点!G275 -> 放射技士 | E44: 6 | F44: =VLOOKUP(C44,[1]笔试成绩!A:C,3,0) -> 71.96 | G44: 75.30 | H44: 73.96
A45: 43 | B45: =[1]第一考点!D280 -> 魏娟 | C45: =[1]第一考点!O280 -> 20230101100609 | D45: =[1]第一考点!G280 -> 放射技士 | E45: 6 | F45: =VLOOKUP(C45,[1]笔试成绩!A:C,3,0) -> 70.98 | G45: 72.08 | H45: 71.64
A46: 44 | B46: =[1]第一考点!D284 -> 吴洁 | C46: =[1]第一考点!O284 -> 20230101100613 | D46: =[1]第一考点!G284 -> 放射技士 | E46: 6 | F46: =VLOOKUP(C46,[1]笔试成绩!A:C,3,0) -> 73.90 | G46: 69.20 | H46: 71.08
A47: 45 | B47: =[1]第一考点!D282 -> 冉飞艳 | C47: =[1]第一考点!O282 -> 20230101100611 | D47: =[1]第一考点!G282 -> 放射技士 | E47: 6 | F47: =VLOOKUP(C47,[1]笔试成绩!A:C,3,0) -> 66.10 | G47: 69.00 | H47: 67.84
A48: 46 | B48: =[1]第一考点!D290 -> 龚菊 | C48: =[1]第一考点!O290 -> 20230101100619 | D48: =[1]第一考点!G290 -> 放射技士 | E48: 6 | F48: =VLOOKUP(C48,[1]笔试成绩!A:C,3,0) -> 64.64 | G48: 69.30 | H48: 67.44
A49: 47 | B49: =[1]第一考点!D287 -> 张中香 | C49: =[1]第一考点!O287 -> 20230101100616 | D49: =[1]第一考点!G287 -> 放射技士 | E49: 6 | F49: =VLOOKUP(C49,[1]笔试成绩!A:C,3,0) -> 64.18 | G49: 48.80 | H49: 54.95
A50: 48 | B50: =[1]第二考点!D16 -> 杨雪 | C50: =[1]第二考点!O16 -> 20230102011015 | D50: =[1]第二考点!G16 -> 药房药师 | E50: 10 | F50: =VLOOKUP(C50,[1]笔试成绩!A:C,3,0) -> 78.54 | G50: 85.80 | H50: 82.90 | I50: 是
A51: 49 | B51: =[1]第二考点!D57 -> 赵绳 | C51: =[1]第二考点!O57 -> 20230102021026 | D51: =[1]第二考点!G57 -> 药房药师 | E51: 10 | F51: =VLOOKUP(C51,[1]笔试成绩!A:C,3,0) -> 80.74 | G51: 81.40 | H51: 81.14 | I51: 是
A52: 50 | B52: =[1]第二考点!D81 -> 胡雪梅 | C52: =[1]第二考点!O81 -> 20230102031020 | D52: =[1]第二考点!G81 -> 药房药师 | E52: 10 | F52: =VLOOKUP(C52,[1]笔试成绩!A:C,3,0) -> 79.52 | G52: 81.20 | H52: 80.53 | I52: 是
A53: 51 | B53: =[1]第二考点!D49 -> 冯关敏 | C53: =[1]第二考点!O49 -> 20230102021018 | D53: =[1]第二考点!G49 -> 药房药师 | E53: 10 | F53: =VLOOKUP(C53,[1]笔试成绩!A:C,3,0) -> 80.98 | G53: 79.20 | H53: 79.91 | I53: 是
A54: 52 | B54: =[1]第二考点!D12 -> 李洪会 | C54: =[1]第二考点!O12 -> 20230102011011 | D54: =[1]第二考点!G12 -> 药房药师 | E54: 10 | F54: =VLOOKUP(C54,[1]笔试成绩!A:C,3,0) -> 83.18 | G54: 76.40 | H54: 79.11 | I54: 是
A55: 53 | B55: =[1]第二考点!D17 -> 杨美 | C55: =[1]第二考点!O17 -> 20230102011016 | D55: =[1]第二考点!G17 -> 药房药师 | E55: 10 | F55: =VLOOKUP(C55,[1]笔试成绩!A:C,3,0) -> 79.02 | G55: 78.80 | H55: 78.89
A56: 54 | B56: =[1]第二考点!D72 -> 卢星星 | C56: =[1]第二考点!O72 -> 20230102031011 | D56: =[1]第二考点!G72 -> 药房药师 | E56: 10 | F56: =VLOOKUP(C56,[1]笔试成绩!A:C,3,0) -> 80.72 | G56: 76.80 | H56: 78.37
A57: 55 | B57: =[1]第二考点!D4 -> 李雪 | C57: =[1]第二考点!O4 -> 20230102011003 | D57: =[1]第二考点!G4 -> 药房药师 | E57: 10 | F57: =VLOOKUP(C57,[1]笔试成绩!A:C,3,0) -> 82.20 | G57: 73.00 | H57: 76.68
A58: 56 | B58: =[1]第二考点!D42 -> 郑艳 | C58: =[1]第二考点!O42 -> 20230102021011 | D58: =[1]第二考点!G42 -> 药房药师 | E58: 10 | F58: =VLOOKUP(C58,[1]笔试成绩!A:C,3,0) -> 78.30 | G58: 75.20 | H58: 76.44
A59: 57 | B59: =[1]第二考点!D84 -> 彭伟 | C59: =[1]第二考点!O84 -> 20230102031023 | D59: =[1]第二考点!G84 -> 药房药师 | E59: 10 | F59: =VLOOKUP(C59,[1]笔试成绩!A:C,3,0) -> 78.54 | G59: 73.80 | H59: 75.70
A60: 58 | B60: =[1]第二考点!D105 -> 马会余 | C60: =[1]第二考点!O105 -> 20230102041014 | D60: =[1]第二考点!G105 -> 药房药师 | E60: 10 | F60: =VLOOKUP(C60,[1]笔试成绩!A:C,3,0) -> 78.54 | G60: 72.00 | H60: 74.62
A61: 59 | B61: =[1]第二考点!D31 -> 徐梅 | C61: =[1]第二考点!O31 -> 20230102011030 | D61: =[1]第二考点!G31 -> 药房药师 | E61: 10 | F61: =VLOOKUP(C61,[1]笔试成绩!A:C,3,0) -> 78.54 | G61: 71.20 | H61: 74.14
A62: 60 | B62: =[1]第二考点!D40 -> 孙慧 | C62: =[1]第二考点!O40 -> 20230102021009 | D62: =[1]第二考点!G40 -> 药房药师 | E62: 10 | F62: =VLOOKUP(C62,[1]笔试成绩!A:C,3,0) -> 78.30 | G62: 70.80 | H62: 73.80
A63: 61 | B63: =[1]第二考点!D8 -> 郑致富 | C63: =[1]第二考点!O8 -> 20230102011007 | D63: =[1]第二考点!G8 -> 药房药师 | E63: 10 | F63: =VLOOKUP(C63,[1]笔试成绩!A:C,3,0) -> 79.50 | G63: 68.20 | H63: 72.72
A64: 62 | B64: =[1]第二考点!D58 -> 吉婷 | C64: =[1]第二考点!O58 -> 20230102021027 | D64: =[1]第二考点!G58 -> 药房药师 | E64: 10 | F64: =VLOOKUP(C64,[1]笔试成绩!A:C,3,0) -> 85.62 | G64: 0.00 | H64: 34.25
A65: 63 | B65: =[1]第二考点!D5 -> 郭芳 | C65: =[1]第二考点!O5 -> 20230102011004 | D65: =[1]第二考点!G5 -> 药房药师 | E65: 10 | F65: =VLOOKUP(C65,[1]笔试成绩!A:C,3,0) -> 78.54 | G65: 0.00 | H65: 31.42
A66: 64 | B66: =[1]第一考点!D301 -> 龙熙 | C66: =[1]第一考点!O301 -> 20230101101130 | D66: =[1]第一考点!G301 -> 中药房药师 | E66: 11 | F66: =VLOOKUP(C66,[1]笔试成绩!A:C,3,0) -> 83.66 | G66: 79.50 | H66: 81.16 | I66: 是
A67: 65 | B67: =[1]第一考点!D299 -> 丁成东 | C67: =[1]第一考点!O299 -> 20230101101128 | D67: =[1]第一考点!G299 -> 中药房药师 | E67: 11 | F67: =VLOOKUP(C67,[1]笔试成绩!A:C,3,0) -> 76.84 | G67: 76.30 | H67: =F67*0.4+G67*0.6 -> 76.52
A68: 66 | B68: =[1]第一考点!D300 -> 高刚 | C68: =[1]第一考点!O300 -> 20230101101129 | D68: =[1]第一考点!G300 -> 中药房药师 | E68: 11 | F68: =VLOOKUP(C68,[1]笔试成绩!A:C,3,0) -> 75.12 | G68: 71.80 | H68: 73.13
A69: 67 | B69: =[1]第二考点!D437 -> 黎江艳 | C69: =[1]第二考点!O437 -> 20230102151216 | D69: =[1]第二考点!G437 -> 护士 | E69: 12 | F69: =VLOOKUP(C69,[1]笔试成绩!A:C,3,0) -> 77.80 | G69: 88.40 | H69: 84.16 | I69: 是
A70: 68 | B70: =[1]第二考点!D350 -> 李京 | C70: =[1]第二考点!O350 -> 20230102121219 | D70: =[1]第二考点!G350 -> 护士 | E70: 12 | F70: =VLOOKUP(C70,[1]笔试成绩!A:C,3,0) -> 77.80 | G70: 86.40 | H70: 82.96 | I70: 是
A71: 69 | B71: =[1]第二考点!D611 -> 熊兰 | C71: =[1]第二考点!O611 -> 20230102211210 | D71: =[1]第二考点!G611 -> 护士 | E71: 12 | F71: =VLOOKUP(C71,[1]笔试成绩!A:C,3,0) -> 76.10 | G71: 86.60 | H71: 82.40 | I71: 是
A72: 70 | B72: =[1]第二考点!D585 -> 陶昊 | C72: =[1]第二考点!O585 -> 20230102201214 | D72: =[1]第二考点!G585 -> 护士 | E72: 12 | F72: =VLOOKUP(C72,[1]笔试成绩!A:C,3,0) -> 77.80 | G72: 83.80 | H72: 81.40 | I72: 是
A73: 71 | B73: =[1]第二考点!D218 -> 先思梅 | C73: =[1]第二考点!O218 -> 20230102081207 | D73: =[1]第二考点!G218 -> 护士 | E73: 12 | F73: =VLOOKUP(C73,[1]笔试成绩!A:C,3,0) -> 76.34 | G73: 83.40 | H73: 80.58 | I73: 是
A74: 72 | B74: =[1]第二考点!D451 -> 石娇 | C74: =[1]第二考点!O451 -> 20230102151230 | D74: =[1]第二考点!G451 -> 护士 | E74: 12 | F74: =VLOOKUP(C74,[1]笔试成绩!A:C,3,0) -> 80.24 | G74: 80.80 | H74: 80.58 | I74: 是
A75: 73 | B75: =[1]第二考点!D594 -> 毛元义 | C75: =[1]第二考点!O594 -> 20230102201223 | D75: =[1]第二考点!G594 -> 护士 | E75: 12 | F75: =VLOOKUP(C75,[1]笔试成绩!A:C,3,0) -> 80.00 | G75: 79.80 | H75: 79.88 | I75: 是
A76: 74 | B76: =[1]第二考点!D425 -> 刘敏 | C76: =[1]第二考点!O425 -> 20230102151204 | D76: =[1]第二考点!G425 -> 护士 | E76: 12 | F76: =VLOOKUP(C76,[1]笔试成绩!A:C,3,0) -> 78.54 | G76: 80.40 | H76: 79.66 | I76: 是
A77: 75 | B77: =[1]第二考点!D167 -> 尹念 | C77: =[1]第二考点!O167 -> 20230102061216 | D77: =[1]第二考点!G167 -> 护士 | E77: 12 | F77: =VLOOKUP(C77,[1]笔试成绩!A:C,3,0) -> 78.54 | G77: 79.40 | H77: 79.06 | I77: 是
A78: 76 | B78: =[1]第二考点!D341 -> 李英 | C78: =[1]第二考点!O341 -> 20230102121210 | D78: =[1]第二考点!G341 -> 护士 | E78: 12 | F78: =VLOOKUP(C78,[1]笔试成绩!A:C,3,0) -> 73.16 | G78: 82.40 | H78: 78.70 | I78: 是
A79: 77 | B79: =[1]第二考点!D174 -> 张仙仙 | C79: =[1]第二考点!O174 -> 20230102061223 | D79: =[1]第二考点!G174 -> 护士 | E79: 12 | F79: =VLOOKUP(C79,[1]笔试成绩!A:C,3,0) -> 72.44 | G79: 82.40 | H79: 78.42 | I79: 是
A80: 78 | B80: =[1]第二考点!D691 -> 晏艳 | C80: =[1]第二考点!O691 -> 20230102231230 | D80: =[1]第二考点!G691 -> 护士 | E80: 12 | F80: =VLOOKUP(C80,[1]笔试成绩!A:C,3,0) -> 76.58 | G80: 79.60 | H80: 78.39 | I80: 是
A81: 79 | B81: =[1]第二考点!D645 -> 张云龙 | C81: =[1]第二考点!O645 -> 20230102221214 | D81: =[1]第二考点!G645 -> 护士 | E81: 12 | F81: =VLOOKUP(C81,[1]笔试成绩!A:C,3,0) -> 73.92 | G81: 79.60 | H81: 77.33 | I81: 是
A82: 80 | B82: =[1]第二考点!D729 -> 聂梅 | C82: =[1]第二考点!O729 -> 20230102251208 | D82: =[1]第二考点!G729 -> 护士 | E82: 12 | F82: =VLOOKUP(C82,[1]笔试成绩!A:C,3,0) -> 72.94 | G82: 80.20 | H82: 77.30 | I82: 是
A83: 81 | B83: =[1]第二考点!D595 -> 肖文娟 | C83: =[1]第二考点!O595 -> 20230102201224 | D83: =[1]第二考点!G595 -> 护士 | E83: 12 | F83: =VLOOKUP(C83,[1]笔试成绩!A:C,3,0) -> 80.98 | G83: 74.80 | H83: 77.27 | I83: 是
A84: 82 | B84: =[1]第二考点!D644 -> 周杰 | C84: =[1]第二考点!O644 -> 20230102221213 | D84: =[1]第二考点!G644 -> 护士 | E84: 12 | F84: =VLOOKUP(C84,[1]笔试成绩!A:C,3,0) -> 82.20 | G84: 73.80 | H84: 77.16 | I84: 是
A85: 83 | B85: =[1]第二考点!D185 -> 陈亦婷 | C85: =[1]第二考点!O185 -> 20230102071204 | D85: =[1]第二考点!G185 -> 护士 | E85: 12 | F85: =VLOOKUP(C85,[1]笔试成绩!A:C,3,0) -> 86.58 | G85: 70.80 | H85: 77.11 | I85: 是
A86: 84 | B86: =[1]第二考点!D323 -> 陈婕 | C86: =[1]第二考点!O323 -> 20230102111222 | D86: =[1]第二考点!G323 -> 护士 | E86: 12 | F86: =VLOOKUP(C86,[1]笔试成绩!A:C,3,0) -> 77.56 | G86: 76.80 | H86: 77.10 | I86: 是
A87: 85 | B87: =[1]第二考点!D704 -> 常国域 | C87: =[1]第二考点!O704 -> 20230102241213 | D87: =[1]第二考点!G704 -> 护士 | E87: 12 | F87: =VLOOKUP(C87,[1]笔试成绩!A:C,3,0) -> 76.58 | G87: 77.40 | H87: 77.07 | I87: 是
A88: 86 | B88: =[1]第二考点!D348 -> 张妍 | C88: =[1]第二考点!O348 -> 20230102121217 | D88: =[1]第二考点!G348 -> 护士 | E88: 12 | F88: =VLOOKUP(C88,[1]笔试成绩!A:C,3,0) -> 74.64 | G88: 78.60 | H88: 77.02 | I88: 是
A89: 87 | B89: =[1]第二考点!D207 -> 刘兴爽 | C89: =[1]第二考点!O207 -> 20230102071226 | D89: =[1]第二考点!G207 -> 护士 | E89: 12 | F89: =VLOOKUP(C89,[1]笔试成绩!A:C,3,0) -> 72.92 | G89: 79.40 | H89: 76.81 | I89: 是
A90: 88 | B90: =[1]第二考点!D731 -> 赵娟 | C90: =[1]第二考点!O731 -> 20230102251210 | D90: =[1]第二考点!G731 -> 护士 | E90: 12 | F90: =VLOOKUP(C90,[1]笔试成绩!A:C,3,0) -> 72.92 | G90: 79.20 | H90: 76.69 | I90: 是
A91: 89 | B91: =[1]第二考点!D411 -> 高丽华 | C91: =[1]第二考点!O411 -> 20230102141220 | D91: =[1]第二考点!G411 -> 护士 | E91: 12 | F91: =VLOOKUP(C91,[1]笔试成绩!A:C,3,0) -> 76.84 | G91: 76.40 | H91: 76.58 | I91: 是
A92: 90 | B92: =[1]第二考点!D271 -> 李双喜 | C92: =[1]第二考点!O271 -> 20230102091230 | D92: =[1]第二考点!G271 -> 护士 | E92: 12 | F92: =VLOOKUP(C92,[1]笔试成绩!A:C,3,0) -> 78.04 | G92: 75.60 | H92: 76.58 | I92: 是
A93: 91 | B93: =[1]第二考点!D396 -> 陈娟 | C93: =[1]第二考点!O396 -> 20230102141205 | D93: =[1]第二考点!G396 -> 护士 | E93: 12 | F93: =VLOOKUP(C93,[1]笔试成绩!A:C,3,0) -> 72.92 | G93: 79.00 | H93: 76.57 | I93: 是
A94: 92 | B94: =[1]第二考点!D636 -> 段军 | C94: =[1]第二考点!O636 -> 20230102221205 | D94: =[1]第二考点!G636 -> 护士 | E94: 12 | F94: =VLOOKUP(C94,[1]笔试成绩!A:C,3,0) -> 72.46 | G94: 79.20 | H94: 76.50 | I94: 是
A95: 93 | B95: =[1]第二考点!D741 -> 汪莎莉 | C95: =[1]第二考点!O741 -> 20230102251220 | D95: =[1]第二考点!G741 -> 护士 | E95: 12 | F95: =VLOOKUP(C95,[1]笔试成绩!A:C,3,0) -> 74.16 | G95: 78.00 | H95: 76.46 | I95: 是
A96: 94 | B96: =[1]第二考点!D778 -> 石雪琴 | C96: =[1]第二考点!O778 -> 20230102261227 | D96: =[1]第二考点!G778 -> 护士 | E96: 12 | F96: =VLOOKUP(C96,[1]笔试成绩!A:C,3,0) -> 81.22 | G96: 73.20 | H96: 76.41 | I96: 是
A97: 95 | B97: =[1]第二考点!D752 -> 俞丹妮 | C97: =[1]第二考点!O752 -> 20230102261201 | D97: =[1]第二考点!G752 -> 护士 | E97: 12 | F97: =VLOOKUP(C97,[1]笔试成绩!A:C,3,0) -> 79.26 | G97: 74.40 | H97: 76.34 | I97: 是
A98: 96 | B98: =[1]第二考点!D281 -> 胡潘莲 | C98: =[1]第二考点!O281 -> 20230102101210 | D98: =[1]第二考点!G281 -> 护士 | E98: 12 | F98: =VLOOKUP(C98,[1]笔试成绩!A:C,3,0) -> 76.34 | G98: 76.00 | H98: 76.14 | I98: 是
A99: 97 | B99: =[1]第二考点!D751 -> 李雪 | C99: =[1]第二考点!O751 -> 20230102251230 | D99: =[1]第二考点!G751 -> 护士 | E99: 12 | F99: =VLOOKUP(C99,[1]笔试成绩!A:C,3,0) -> 75.38 | G99: 76.60 | H99: 76.11
A100: 98 | B100: =[1]第二考点!D635 -> 张念念 | C100: =[1]第二考点!O635 -> 20230102221204 | D100: =[1]第二考点!G635 -> 护士 | E100: 12 | F100: =VLOOKUP(C100,[1]笔试成绩!A:C,3,0) -> 78.30 | G100: 74.60 | H100: 76.08
A101: 99 | B101: =[1]第二考点!D572 -> 周艳 | C101: =[1]第二考点!O572 -> 20230102201201 | D101: =[1]第二考点!G572 -> 护士 | E101: 12 | F101: =VLOOKUP(C101,[1]笔试成绩!A:C,3,0) -> 77.82 | G101: 74.60 | H101: 75.89
A102: 100 | B102: =[1]第二考点!D343 -> 马梦蝶 | C102: =[1]第二考点!O343 -> 20230102121212 | D102: =[1]第二考点!G343 -> 护士 | E102: 12 | F102: =VLOOKUP(C102,[1]笔试成绩!A:C,3,0) -> 75.12 | G102: 76.40 | H102: 75.89
A103: 101 | B103: =[1]第二考点!D476 -> 潘奕娇 | C103: =[1]第二考点!O476 -> 20230102161225 | D103: =[1]第二考点!G476 -> 护士 | E103: 12 | F103: =VLOOKUP(C103,[1]笔试成绩!A:C,3,0) -> 72.70 | G103: 78.00 | H103: 75.88
A104: 102 | B104: =[1]第二考点!D689 -> 康雪 | C104: =[1]第二考点!O689 -> 20230102231228 | D104: =[1]第二考点!G689 -> 护士 | E104: 12 | F104: =VLOOKUP(C104,[1]笔试成绩!A:C,3,0) -> 73.16 | G104: 77.60 | H104: 75.82
A105: 103 | B105: =[1]第二考点!D701 -> 沈群松 | C105: =[1]第二考点!O701 -> 20230102241210 | D105: =[1]第二考点!G701 -> 护士 | E105: 12 | F105: =VLOOKUP(C105,[1]笔试成绩!A:C,3,0) -> 74.88 | G105: 76.20 | H105: 75.67
A106: 104 | B106: =[1]第二考点!D782 -> 刘翠 | C106: =[1]第二考点!O782 -> 20230102271201 | D106: =[1]第二考点!G782 -> 护士 | E106: 12 | F106: =VLOOKUP(C106,[1]笔试成绩!A:C,3,0) -> 74.14 | G106: 76.60 | H106: 75.62
A107: 105 | B107: =[1]第二考点!D430 -> 王丹 | C107: =[1]第二考点!O430 -> 20230102151209 | D107: =[1]第二考点!G430 -> 护士 | E107: 12 | F107: =VLOOKUP(C107,[1]笔试成绩!A:C,3,0) -> 73.90 | G107: 76.60 | H107: 75.52
A108: 106 | B108: =[1]第二考点!D642 -> 曹玉吉 | C108: =[1]第二考点!O642 -> 20230102221211 | D108: =[1]第二考点!G642 -> 护士 | E108: 12 | F108: =VLOOKUP(C108,[1]笔试成绩!A:C,3,0) -> 73.66 | G108: 76.40 | H108: 75.30
A109: 107 | B109: =[1]第二考点!D466 -> 杨兰 | C109: =[1]第二考点!O466 -> 20230102161215 | D109: =[1]第二考点!G466 -> 护士 | E109: 12 | F109: =VLOOKUP(C109,[1]笔试成绩!A:C,3,0) -> 74.64 | G109: 75.40 | H109: 75.10
A110: 108 | B110: =[1]第二考点!D198 -> 毛丽 | C110: =[1]第二考点!O198 -> 20230102071217 | D110: =[1]第二考点!G198 -> 护士 | E110: 12 | F110: =VLOOKUP(C110,[1]笔试成绩!A:C,3,0) -> 74.88 | G110: 75.20 | H110: 75.07
A111: 109 | B111: =[1]第二考点!D614 -> 周霞 | C111: =[1]第二考点!O614 -> 20230102211213 | D111: =[1]第二考点!G614 -> 护士 | E111: 12 | F111: =VLOOKUP(C111,[1]笔试成绩!A:C,3,0) -> 73.66 | G111: 75.80 | H111: 74.94
A112: 110 | B112: =[1]第二考点!D386 -> 邹晓娟 | C112: =[1]第二考点!O386 -> 20230102131225 | D112: =[1]第二考点!G386 -> 护士 | E112: 12 | F112: =VLOOKUP(C112,[1]笔试成绩!A:C,3,0) -> 72.44 | G112: 76.40 | H112: 74.82
A113: 111 | B113: =[1]第二考点!D577 -> 夏娇 | C113: =[1]第二考点!O577 -> 20230102201206 | D113: =[1]第二考点!G577 -> 护士 | E113: 12 | F113: =VLOOKUP(C113,[1]笔试成绩!A:C,3,0) -> 80.72 | G113: 70.80 | H113: 74.77
A114: 112 | B114: =[1]第二考点!D518 -> 熊欣 | C114: =[1]第二考点!O518 -> 20230102181207 | D114: =[1]第二考点!G518 -> 护士 | E114: 12 | F114: =VLOOKUP(C114,[1]笔试成绩!A:C,3,0) -> 80.48 | G114: 70.80 | H114: 74.67
A115: 113 | B115: =[1]第二考点!D507 -> 陈仁凤 | C115: =[1]第二考点!O507 -> 20230102171226 | D115: =[1]第二考点!G507 -> 护士 | E115: 12 | F115: =VLOOKUP(C115,[1]笔试成绩!A:C,3,0) -> 74.66 | G115: 74.20 | H115: 74.38
A116: 114 | B116: =[1]第二考点!D368 -> 杨晓娅 | C116: =[1]第二考点!O368 -> 20230102131207 | D116: =[1]第二考点!G368 -> 护士 | E116: 12 | F116: =VLOOKUP(C116,[1]笔试成绩!A:C,3,0) -> 72.44 | G116: 75.40 | H116: 74.22
A117: 115 | B117: =[1]第二考点!D570 -> 王璞 | C117: =[1]第二考点!O570 -> 20230102191229 | D117: =[1]第二考点!G570 -> 护士 | E117: 12 | F117: =VLOOKUP(C117,[1]笔试成绩!A:C,3,0) -> 73.66 | G117: 74.40 | H117: 74.10
A118: 116 | B118: =[1]第二考点!D520 -> 陈晓玲 | C118: =[1]第二考点!O520 -> 20230102181209 | D118: =[1]第二考点!G520 -> 护士 | E118: 12 | F118: =VLOOKUP(C118,[1]笔试成绩!A:C,3,0) -> 73.92 | G118: 74.00 | H118: 73.97
A119: 117 | B119: =[1]第二考点!D708 -> 徐凤 | C119: =[1]第二考点!O708 -> 20230102241217 | D119: =[1]第二考点!G708 -> 护士 | E119: 12 | F119: =VLOOKUP(C119,[1]笔试成绩!A:C,3,0) -> 76.58 | G119: 72.20 | H119: 73.95
A120: 118 | B120: =[1]第二考点!D301 -> 杜开艳 | C120: =[1]第二考点!O301 -> 20230102101230 | D120: =[1]第二考点!G301 -> 护士 | E120: 12 | F120: =VLOOKUP(C120,[1]笔试成绩!A:C,3,0) -> 72.44 | G120: 74.60 | H120: 73.74
A121: 119 | B121: =[1]第二考点!D132 -> 吴雪雪 | C121: =[1]第二考点!O132 -> 20230102051211 | D121: =[1]第二考点!G132 -> 护士 | E121: 12 | F121: =VLOOKUP(C121,[1]笔试成绩!A:C,3,0) -> 77.32 | G121: 71.00 | H121: 73.53
A122: 120 | B122: =[1]第二考点!D357 -> 王婷婷 | C122: =[1]第二考点!O357 -> 20230102121226 | D122: =[1]第二考点!G357 -> 护士 | E122: 12 | F122: =VLOOKUP(C122,[1]笔试成绩!A:C,3,0) -> 73.42 | G122: 73.40 | H122: 73.41
A123: 121 | B123: =[1]第二考点!D246 -> 兰雪 | C123: =[1]第二考点!O246 -> 20230102091205 | D123: =[1]第二考点!G246 -> 护士 | E123: 12 | F123: =VLOOKUP(C123,[1]笔试成绩!A:C,3,0) -> 72.20 | G123: 74.20 | H123: 73.40
A124: 122 | B124: =[1]第二考点!D781 -> 张兴 | C124: =[1]第二考点!O781 -> 20230102261230 | D124: =[1]第二考点!G781 -> 护士 | E124: 12 | F124: =VLOOKUP(C124,[1]笔试成绩!A:C,3,0) -> 77.80 | G124: 70.40 | H124: 73.36
A125: 123 | B125: =[1]第二考点!D330 -> 崔光芬 | C125: =[1]第二考点!O330 -> 20230102111229 | D125: =[1]第二考点!G330 -> 护士 | E125: 12 | F125: =VLOOKUP(C125,[1]笔试成绩!A:C,3,0) -> 72.92 | G125: 73.60 | H125: 73.33
A126: 124 | B126: =[1]第二考点!D127 -> 赵家琴 | C126: =[1]第二考点!O127 -> 20230102051206 | D126: =[1]第二考点!G127 -> 护士 | E126: 12 | F126: =VLOOKUP(C126,[1]笔试成绩!A:C,3,0) -> 81.22 | G126: 68.00 | H126: 73.29
A127: 125 | B127: =[1]第二考点!D164 -> 颜嘉 | C127: =[1]第二考点!O164 -> 20230102061213 | D127: =[1]第二考点!G164 -> 护士 | E127: 12 | F127: =VLOOKUP(C127,[1]笔试成绩!A:C,3,0) -> 72.20 | G127: 74.00 | H127: 73.28
A128: 126 | B128: =[1]第二考点!D228 -> 王洁 | C128: =[1]第二考点!O228 -> 20230102081217 | D128: =[1]第二考点!G228 -> 护士 | E128: 12 | F128: =VLOOKUP(C128,[1]笔试成绩!A:C,3,0) -> 76.34 | G128: 71.20 | H128: 73.26
A129: 127 | B129: =[1]第二考点!D449 -> 朱远涛 | C129: =[1]第二考点!O449 -> 20230102151228 | D129: =[1]第二考点!G449 -> 护士 | E129: 12 | F129: =VLOOKUP(C129,[1]笔试成绩!A:C,3,0) -> 74.64 | G129: 72.20 | H129: 73.18
A130: 128 | B130: =[1]第二考点!D737 -> 邹红霄 | C130: =[1]第二考点!O737 -> 20230102251216 | D130: =[1]第二考点!G737 -> 护士 | E130: 12 | F130: =VLOOKUP(C130,[1]笔试成绩!A:C,3,0) -> 76.84 | G130: 70.20 | H130: 72.86
A131: 129 | B131: =[1]第二考点!D379 -> 蒋雪 | C131: =[1]第二考点!O379 -> 20230102131218 | D131: =[1]第二考点!G379 -> 护士 | E131: 12 | F131: =VLOOKUP(C131,[1]笔试成绩!A:C,3,0) -> 81.46 | G131: 66.40 | H131: =F131*0.4+G131*0.6 -> 72.42
A132: 130 | B132: =[1]第二考点!D395 -> 卢信宏 | C132: =[1]第二考点!O395 -> 20230102141204 | D132: =[1]第二考点!G395 -> 护士 | E132: 12 | F132: =VLOOKUP(C132,[1]笔试成绩!A:C,3,0) -> 75.36 | G132: 70.40 | H132: 72.38
A133: 131 | B133: =[1]第二考点!D733 -> 杨梅 | C133: =[1]第二考点!O733 -> 20230102251212 | D133: =[1]第二考点!G733 -> 护士 | E133: 12 | F133: =VLOOKUP(C133,[1]笔试成绩!A:C,3,0) -> 73.18 | G133: 71.80 | H133: 72.35
A134: 132 | B134: =[1]第二考点!D790 -> 刘丽俐 | C134: =[1]第二考点!O790 -> 20230102271209 | D134: =[1]第二考点!G790 -> 护士 | E134: 12 | F134: =VLOOKUP(C134,[1]笔试成绩!A:C,3,0) -> 76.10 | G134: 69.80 | H134: 72.32
A135: 133 | B135: =[1]第二考点!D435 -> 聂胜男 | C135: =[1]第二考点!O435 -> 20230102151214 | D135: =[1]第二考点!G435 -> 护士 | E135: 12 | F135: =VLOOKUP(C135,[1]笔试成绩!A:C,3,0) -> 75.12 | G135: 70.20 | H135: 72.17
A136: 134 | B136: =[1]第二考点!D758 -> 赵显睿 | C136: =[1]第二考点!O758 -> 20230102261207 | D136: =[1]第二考点!G758 -> 护士 | E136: 12 | F136: =VLOOKUP(C136,[1]笔试成绩!A:C,3,0) -> 74.64 | G136: 70.00 | H136: 71.86
A137: 135 | B137: =[1]第二考点!D742 -> 王云 | C137: =[1]第二考点!O742 -> 20230102251221 | D137: =[1]第二考点!G742 -> 护士 | E137: 12 | F137: =VLOOKUP(C137,[1]笔试成绩!A:C,3,0) -> 74.16 | G137: 70.20 | H137: 71.78
A138: 136 | B138: =[1]第二考点!D607 -> 蔡小星 | C138: =[1]第二考点!O607 -> 20230102211206 | D138: =[1]第二考点!G607 -> 护士 | E138: 12 | F138: =VLOOKUP(C138,[1]笔试成绩!A:C,3,0) -> 74.14 | G138: 70.20 | H138: 71.78
A139: 137 | B139: =[1]第二考点!D424 -> 吴贵南 | C139: =[1]第二考点!O424 -> 20230102151203 | D139: =[1]第二考点!G424 -> 护士 | E139: 12 | F139: =VLOOKUP(C139,[1]笔试成绩!A:C,3,0) -> 74.64 | G139: 69.20 | H139: 71.38
A140: 138 | B140: =[1]第二考点!D289 -> 王万林 | C140: =[1]第二考点!O289 -> 20230102101218 | D140: =[1]第二考点!G289 -> 护士 | E140: 12 | F140: =VLOOKUP(C140,[1]笔试成绩!A:C,3,0) -> 72.44 | G140: 70.60 | H140: 71.34
A141: 139 | B141: =[1]第二考点!D381 -> 张连芳 | C141: =[1]第二考点!O381 -> 20230102131220 | D141: =[1]第二考点!G381 -> 护士 | E141: 12 | F141: =VLOOKUP(C141,[1]笔试成绩!A:C,3,0) -> 75.60 | G141: 68.40 | H141: 71.28
A142: 140 | B142: =[1]第二考点!D155 -> 周先飞 | C142: =[1]第二考点!O155 -> 20230102061204 | D142: =[1]第二考点!G155 -> 护士 | E142: 12 | F142: =VLOOKUP(C142,[1]笔试成绩!A:C,3,0) -> 76.36 | G142: 67.60 | H142: 71.10
A143: 141 | B143: =[1]第二考点!D426 -> 张三勤 | C143: =[1]第二考点!O426 -> 20230102151205 | D143: =[1]第二考点!G426 -> 护士 | E143: 12 | F143: =VLOOKUP(C143,[1]笔试成绩!A:C,3,0) -> 73.16 | G143: 69.60 | H143: 71.02
A144: 142 | B144: =[1]第二考点!D648 -> 马郃云 | C144: =[1]第二考点!O648 -> 20230102221217 | D144: =[1]第二考点!G648 -> 护士 | E144: 12 | F144: =VLOOKUP(C144,[1]笔试成绩!A:C,3,0) -> 72.22 | G144: 70.00 | H144: 70.89
A145: 143 | B145: =[1]第二考点!D453 -> 毛昌粉 | C145: =[1]第二考点!O453 -> 20230102161202 | D145: =[1]第二考点!G453 -> 护士 | E145: 12 | F145: =VLOOKUP(C145,[1]笔试成绩!A:C,3,0) -> 72.44 | G145: 69.20 | H145: 70.50
A146: 144 | B146: =[1]第二考点!D203 -> 翟玉琴 | C146: =[1]第二考点!O203 -> 20230102071222 | D146: =[1]第二考点!G203 -> 护士 | E146: 12 | F146: =VLOOKUP(C146,[1]笔试成绩!A:C,3,0) -> 72.20 | G146: 69.00 | H146: 70.28
A147: 145 | B147: =[1]第二考点!D418 -> 李旭桃 | C147: =[1]第二考点!O418 -> 20230102141227 | D147: =[1]第二考点!G418 -> 护士 | E147: 12 | F147: =VLOOKUP(C147,[1]笔试成绩!A:C,3,0) -> 77.08 | G147: 65.60 | H147: 70.19
A148: 146 | B148: =[1]第二考点!D423 -> 赵碟 | C148: =[1]第二考点!O423 -> 20230102151202 | D148: =[1]第二考点!G423 -> 护士 | E148: 12 | F148: =VLOOKUP(C148,[1]笔试成绩!A:C,3,0) -> 74.14 | G148: 67.20 | H148: 69.98
A149: 147 | B149: =[1]第二考点!D397 -> 任元美 | C149: =[1]第二考点!O397 -> 20230102141206 | D149: =[1]第二考点!G397 -> 护士 | E149: 12 | F149: =VLOOKUP(C149,[1]笔试成绩!A:C,3,0) -> 75.12 | G149: 65.40 | H149: 69.29
A150: 148 | B150: =[1]第二考点!D333 -> 吕侃 | C150: =[1]第二考点!O333 -> 20230102121202 | D150: =[1]第二考点!G333 -> 护士 | E150: 12 | F150: =VLOOKUP(C150,[1]笔试成绩!A:C,3,0) -> 72.94 | G150: 66.40 | H150: 69.02
A151: 149 | B151: =[1]第二考点!D290 -> 宋然 | C151: =[1]第二考点!O290 -> 20230102101219 | D151: =[1]第二考点!G290 -> 护士 | E151: 12 | F151: =VLOOKUP(C151,[1]笔试成绩!A:C,3,0) -> 72.92 | G151: 64.80 | H151: 68.05
A152: 150 | B152: =[1]第二考点!D755 -> 郭玉莲 | C152: =[1]第二考点!O755 -> 20230102261204 | D152: =[1]第二考点!G755 -> 护士 | E152: 12 | F152: =VLOOKUP(C152,[1]笔试成绩!A:C,3,0) -> 72.20 | G152: 65.20 | H152: 68.00
A153: 151 | B153: =[1]第二考点!D233 -> 杨茂筑 | C153: =[1]第二考点!O233 -> 20230102081222 | D153: =[1]第二考点!G233 -> 护士 | E153: 12 | F153: =VLOOKUP(C153,[1]笔试成绩!A:C,3,0) -> 72.22 | G153: 65.00 | H153: 67.89
A154: 152 | B154: =[1]第二考点!D552 -> 赵梅 | C154: =[1]第二考点!O552 -> 20230102191211 | D154: =[1]第二考点!G552 -> 护士 | E154: 12 | F154: =VLOOKUP(C154,[1]笔试成绩!A:C,3,0) -> 72.44 | G154: 64.20 | H154: 67.50
A155: 153 | B155: =[1]第二考点!D460 -> 吕雪莹 | C155: =[1]第二考点!O460 -> 20230102161209 | D155: =[1]第二考点!G460 -> 护士 | E155: 12 | F155: =VLOOKUP(C155,[1]笔试成绩!A:C,3,0) -> 73.18 | G155: 62.60 | H155: 66.83
A156: 154 | B156: =[1]第二考点!D657 -> 王琴 | C156: =[1]第二考点!O657 -> 20230102221226 | D156: =[1]第二考点!G657 -> 护士 | E156: 12 | F156: =VLOOKUP(C156,[1]笔试成绩!A:C,3,0) -> 74.38 | G156: 60.40 | H156: 65.99
A157: 155 | B157: =[1]第二考点!D319 -> 李海迪 | C157: =[1]第二考点!O319 -> 20230102111218 | D157: =[1]第二考点!G319 -> 护士 | E157: 12 | F157: =VLOOKUP(C157,[1]笔试成绩!A:C,3,0) -> 73.42 | G157: 56.60 | H157: 63.33
A158: 156 | B158: =[1]第二考点!D186 -> 申鑫 | C158: =[1]第二考点!O186 -> 20230102071205 | D158: =[1]第二考点!G186 -> 护士 | E158: 12 | F158: =VLOOKUP(C158,[1]笔试成绩!A:C,3,0) -> 78.06 | G158: 0.00 | H158: 31.22
A159: 157 | B159: =[1]第二考点!D209 -> 聂倩文 | C159: =[1]第二考点!O209 -> 20230102071228 | D159: =[1]第二考点!G209 -> 护士 | E159: 12 | F159: =VLOOKUP(C159,[1]笔试成绩!A:C,3,0) -> 73.66 | G159: 0.00 | H159: 29.46
A160: 158 | B160: =[1]第二考点!D232 -> 陈蓉 | C160: =[1]第二考点!O232 -> 20230102081221 | D160: =[1]第二考点!G232 -> 护士 | E160: 12 | F160: =VLOOKUP(C160,[1]笔试成绩!A:C,3,0) -> 73.66 | G160: 0.00 | H160: 29.46
A161: 159 | B161: =[1]第二考点!D255 -> 龙虹 | C161: =[1]第二考点!O255 -> 20230102091214 | D161: =[1]第二考点!G255 -> 护士 | E161: 12 | F161: =VLOOKUP(C161,[1]笔试成绩!A:C,3,0) -> 73.42 | G161: 0.00 | H161: 29.37
A162: 160 | B162: =[1]第一考点!D334 -> 刘相 | C162: =[1]第一考点!O334 -> 20230101121303 | D162: =[1]第一考点!G334 -> 医务工作人员 | E162: 13 | F162: =VLOOKUP(C162,[1]笔试成绩!A:C,3,0) -> 82.92 | G162: 86.20 | H162: 84.89 | I162: 是
A163: 161 | B163: =[1]第一考点!D336 -> 姚极睿 | C163: =[1]第一考点!O336 -> 20230101121305 | D163: =[1]第一考点!G336 -> 医务工作人员 | E163: 13 | F163: =VLOOKUP(C163,[1]笔试成绩!A:C,3,0) -> 82.68 | G163: 80.40 | H163: 81.31
A164: 162 | B164: =[1]第一考点!D318 -> 张青 | C164: =[1]第一考点!O318 -> 20230101111317 | D164: =[1]第一考点!G318 -> 医务工作人员 | E164: 13 | F164: =VLOOKUP(C164,[1]笔试成绩!A:C,3,0) -> 82.68 | G164: 76.60 | H164: 79.03
A165: 163 | B165: =[1]第一考点!D350 -> 李自林 | C165: =[1]第一考点!O350 -> 20230101121319 | D165: =[1]第一考点!G350 -> 医务工作人员 | E165: 13 | F165: =VLOOKUP(C165,[1]笔试成绩!A:C,3,0) -> 82.68 | G165: 70.20 | H165: 75.19
A166: 164 | B166: =[1]第一考点!D374 -> 梅家豪 | C166: =[1]第一考点!O374 -> 20230101131413 | D166: =[1]第一考点!G374 -> 数据统计岗 | E166: 14 | F166: =VLOOKUP(C166,[1]笔试成绩!A:C,3,0) -> 83.66 | G166: 88.60 | H166: 86.62 | I166: 是
A167: 165 | B167: =[1]第一考点!D366 -> 吴昀 | C167: =[1]第一考点!O366 -> 20230101131405 | D167: =[1]第一考点!G366 -> 数据统计岗 | E167: 14 | F167: =VLOOKUP(C167,[1]笔试成绩!A:C,3,0) -> 75.62 | G167: 82.20 | H167: 79.57 | I167: 是
A168: 166 | B168: =[1]第一考点!D372 -> 吴波 | C168: =[1]第一考点!O372 -> 20230101131411 | D168: =[1]第一考点!G372 -> 数据统计岗 | E168: 14 | F168: =VLOOKUP(C168,[1]笔试成绩!A:C,3,0) -> 78.06 | G168: 77.80 | H168: 77.90
A169: 167 | B169: =[1]第一考点!D365 -> 糜晓玲 | C169: =[1]第一考点!O365 -> 20230101131404 | D169: =[1]第一考点!G365 -> 数据统计岗 | E169: 14 | F169: =VLOOKUP(C169,[1]笔试成绩!A:C,3,0) -> 78.56 | G169: 74.40 | H169: 76.06
A170: 168 | B170: =[1]第一考点!D362 -> 徐港 | C170: =[1]第一考点!O362 -> 20230101131401 | D170: =[1]第一考点!G362 -> 数据统计岗 | E170: 14 | F170: =VLOOKUP(C170,[1]笔试成绩!A:C,3,0) -> 75.12 | G170: 75.80 | H170: 75.53
A171: 169 | B171: =[1]第一考点!D354 -> 吴欢 | C171: =[1]第一考点!O354 -> 20230101121423 | D171: =[1]第一考点!G354 -> 数据统计岗 | E171: 14 | F171: =VLOOKUP(C171,[1]笔试成绩!A:C,3,0) -> 77.56 | G171: 69.80 | H171: 72.90
A172: 170 | B172: =[1]第一考点!D380 -> 韩婷 | C172: =[1]第一考点!O380 -> 20230101131519 | D172: =[1]第一考点!G380 -> 宣传岗 | E172: 15 | F172: =VLOOKUP(C172,[1]笔试成绩!A:C,3,0) -> 85.36 | G172: 77.00 | H172: 80.34 | I172: 是
A173: 171 | B173: =[1]第一考点!D418 -> 杨蓉 | C173: =[1]第一考点!O418 -> 20230101141527 | D173: =[1]第一考点!G418 -> 宣传岗 | E173: 15 | F173: =VLOOKUP(C173,[1]笔试成绩!A:C,3,0) -> 75.86 | G173: 81.60 | H173: 79.30 | I173: 是
A174: 172 | B174: =[1]第一考点!D405 -> 邓铎 | C174: =[1]第一考点!O405 -> 20230101141514 | D174: =[1]第一考点!G405 -> 宣传岗 | E174: 15 | F174: =VLOOKUP(C174,[1]笔试成绩!A:C,3,0) -> 78.54 | G174: 79.60 | H174: 79.18
A175: 173 | B175: =[1]第一考点!D425 -> 胡颖 | C175: =[1]第一考点!O425 -> 20230101151504 | D175: =[1]第一考点!G425 -> 宣传岗 | E175: 15 | F175: =VLOOKUP(C175,[1]笔试成绩!A:C,3,0) -> 77.58 | G175: 73.40 | H175: 75.07
A176: 174 | B176: =[1]第一考点!D419 -> 朱春梅 | C176: =[1]第一考点!O419 -> 20230101141528 | D176: =[1]第一考点!G419 -> 宣传岗 | E176: 15 | F176: =VLOOKUP(C176,[1]笔试成绩!A:C,3,0) -> 79.76 | G176: 71.80 | H176: 74.98
A177: 175 | B177: =[1]第一考点!D398 -> 成玉玲 | C177: =[1]第一考点!O398 -> 20230101141507 | D177: =[1]第一考点!G398 -> 宣传岗 | E177: 15 | F177: =VLOOKUP(C177,[1]笔试成绩!A:C,3,0) -> 77.08 | G177: 73.40 | H177: 74.87
A178: 176 | B178: =[1]第二考点!D932 -> 张淇俊 | C178: =[1]第二考点!O932 -> 20230102321601 | D178: =[1]第二考点!G932 -> 会计 | E178: 16 | F178: =VLOOKUP(C178,[1]笔试成绩!A:C,3,0) -> 88.78 | G178: 81.00 | H178: 84.11 | I178: 是
A179: 177 | B179: =[1]第二考点!D862 -> 石星月 | C179: =[1]第二考点!O862 -> 20230102291621 | D179: =[1]第二考点!G862 -> 会计 | E179: 16 | F179: =VLOOKUP(C179,[1]笔试成绩!A:C,3,0) -> 80.74 | G179: 78.60 | H179: 79.46 | I179: 是
A180: 178 | B180: =[1]第二考点!D851 -> 成琴 | C180: =[1]第二考点!O851 -> 20230102291610 | D180: =[1]第二考点!G851 -> 会计 | E180: 16 | F180: =VLOOKUP(C180,[1]笔试成绩!A:C,3,0) -> 80.24 | G180: 77.60 | H180: 78.66 | I180: 是
A181: 179 | B181: =[1]第二考点!D899 -> 周继娟 | C181: =[1]第二考点!O899 -> 20230102301628 | D181: =[1]第二考点!G899 -> 会计 | E181: 16 | F181: =VLOOKUP(C181,[1]笔试成绩!A:C,3,0) -> 85.38 | G181: 71.60 | H181: 77.11
A182: 180 | B182: =[1]第二考点!D886 -> 唐爽 | C182: =[1]第二考点!O886 -> 20230102301615 | D182: =[1]第二考点!G886 -> 会计 | E182: 16 | F182: =VLOOKUP(C182,[1]笔试成绩!A:C,3,0) -> 80.48 | G182: 74.00 | H182: 76.59
A183: 181 | B183: =[1]第二考点!D884 -> 徐仕英 | C183: =[1]第二考点!O884 -> 20230102301613 | D183: =[1]第二考点!G884 -> 会计 | E183: 16 | F183: =VLOOKUP(C183,[1]笔试成绩!A:C,3,0) -> 80.98 | G183: 73.20 | H183: 76.31
A184: 182 | B184: =[1]第二考点!D840 -> 朱玉月 | C184: =[1]第二考点!O840 -> 20230102281629 | D184: =[1]第二考点!G840 -> 会计 | E184: 16 | F184: =VLOOKUP(C184,[1]笔试成绩!A:C,3,0) -> 78.78 | G184: 74.00 | H184: 75.91
A185: 183 | B185: =[1]第二考点!D877 -> 祝登美 | C185: =[1]第二考点!O877 -> 20230102301606 | D185: =[1]第二考点!G877 -> 会计 | E185: 16 | F185: =VLOOKUP(C185,[1]笔试成绩!A:C,3,0) -> 78.78 | G185: 73.80 | H185: 75.79
A186: 184 | B186: =[1]第二考点!D923 -> 张靖 | C186: =[1]第二考点!O923 -> 20230102311622 | D186: =[1]第二考点!G923 -> 会计 | E186: 16 | F186: =VLOOKUP(C186,[1]笔试成绩!A:C,3,0) -> 80.00 | G186: 71.00 | H186: 74.60
